Cogmind - Beta 13 @@@ ROGUE MODE // 2024.04.21 @ 21:00:34 Player: YBOUZL Result: Destroyed by Y-45 Defender with Beam Rifle Performance ------------- Evolutions (1) 500 Regions Visited (3) 600 Robots Destroyed (30) 150 Value Destroyed (623) 623 Prototype IDs (2) 40 Alien Tech Used (0) 0 Bonus (21) 21 TOTAL SCORE: 1934 Bonus ------- Follower Combat Kills 21 Cogmind --------- Core Integrity 0/400 Matter 258/300 Energy 60/100 System Corruption 0% Temperature Cool (9) Movement Walking (260) Ox2 Location -9/Mines Parts ------- > --- POWER (1) -------- (None) > --- PROPULSION (4) --- Aluminum Leg Aluminum Leg Carbon-fiber Leg > --- UTILITY (2) ------ Disposable Heat Sink Huge Storage Unit > --- WEAPON (2) ------- Rocket Launcher Rocket Launcher > --- INVENTORY (25) --- Light Ion Engine Improved Heat Sink Improved Medium Laser Beamcaster High-powered Shotgun High-powered Shotgun High-powered Shotgun High-powered Shotgun Mini Grenade Launcher Mini Grenade Launcher Mini Grenade Launcher Peak State ------------ > --- POWER ------------ (None) > --- PROPULSION ------- Aluminum Leg Aluminum Leg Carbon-fiber Leg > --- UTILITY ---------- Disposable Heat Sink Huge Storage Unit > --- WEAPON ----------- Beamcaster High-powered Shotgun > --- INVENTORY -------- Medium Laser Medium Laser Improved Medium Laser Advanced Beam Cannon Light Assault Rifle High-powered Shotgun High-powered Shotgun High-powered Shotgun Mini Grenade Launcher Mini Grenade Launcher Mini Grenade Launcher [Rating: 18] Favorites ----------- Power Ion Engine Engine Ion Engine Propulsion Aluminum Leg Leg Aluminum Leg Utility Disposable Heat Sink Device Disposable Heat Sink Storage Huge Storage Unit Weapon Advanced Beam Cannon Energy Gun Improved Medium Laser Energy Cannon Advanced Beam Cannon Ballistic Gun High-powered Shotgun Launcher Mini Grenade Launcher Build | -11 -10 -9 -9 ------- Run | Yrd Mat Mat Min Slots Evolved 2 | . . 2 . Power . | . . . . Propulsion 2 | . . 2 . Utility . | . . . . Weapon . | . . . . Parts Attached 27 | 1 9 10 7 Power 2 | . 1 1 . Engine 2 | . 1 1 . Core . | . . . . Reactor . | . . . . Propulsion 7 | . 3 3 1 Treads . | . . . . Leg 7 | . 3 3 1 Wheel . | . . . . Hover . | . . . . Flight . | . . . . Utility 3 | 1 1 1 . Device 1 | . 1 . . Storage 2 | 1 . 1 . Processor . | . . . . Hackware . | . . . . Protection . | . . . . Artifact . | . . . . Weapon 15 | . 4 5 6 Energy Gun 5 | . 3 . 2 Energy Cannon 1 | . . 1 . Ballistic Gun 3 | . . 1 2 Ballistic Cannon . | . . . . Launcher 6 | . 1 3 2 Special Weapon . | . . . . Impact Weapon . | . . . . Slashing Weapon . | . . . . Piercing Weapon . | . . . . Special Melee Weapon . | . . . . Unidentified Prototypes 2 | . . 1 1 Parts Lost 7 | . . 7 . Power 2 | . . 2 . Propulsion 3 | . . 3 . Utility . | . . . . Weapon 2 | . . 2 . Highest Loss Streak 4 | . . 4 . To Critical Strikes . | . . . . Average Slot Usage (%) 70 | . 90 62 73 Engine 5 | . 14 6 . Leg 22 | . 28 11 31 Device 10 | . 4 11 11 Storage 11 | . 14 11 11 Energy Gun 8 | . 26 1 9 Energy Cannon 4 | . . 10 . Ballistic Gun 5 | . . 2 10 Launcher 3 | . 1 7 . Naked Turns . | . . . . Heaviest Build 91 | 5 15 91 87 Greatest Support 35 | 3 20 30 35 Greatest Overweight (x) 30 | 1 . 30 4 Average Overweight (x) 2 | . . 6 2 Largest Inventory Capacity 25 | 8 8 25 25 Average Capacity 21 | 6 8 24 25 Most Carried 13 | 7 8 10 13 Average Carried 7 | 5 4 6 9 Final Capacity 25 | 8 8 25 25 Final Carried 11 | 7 8 10 11 Class Distribution -------------------- 100% | Mutant Dominant Class ---------------- Mutant | -10/Materials Mutant | -9/Materials Mutant | -9/Mines Resources | -11 -10 -9 -9 ----------- Run | Yrd Mat Mat Min Matter Collected 617 | 210 12 227 168 Remotely . | . . . . Salvage Created 648 | . 107 532 9 Parts 55 | . 11 43 1 Haulers Intercepted . | . . . . Recyclers Shooed . | . . . . Parts Field Recycled . | . . . . Retrieved Matter . | . . . . Parts Self-Destructed . | . . . . Prevented . | . . . . Kills | -11 -10 -9 -9 ------- Run | Yrd Mat Mat Min Combat Hostiles Destroyed 18 | . 6 11 1 Guns 4 | . 1 2 1 Cannons 3 | . . 3 . AOE 11 | . 5 6 . Classes Destroyed 7 | . 4 3 . Worker 1 | . 1 . . Builder 2 | . . 2 . Recycler 4 | . . 4 . Watcher 5 | . 2 3 . Swarmer 8 | . 3 4 1 Grunt 8 | . 3 5 . Sentry 2 | . . 2 . Best Kill Streak 9 | . 9 6 1 Combat Bots Only 6 | . 6 5 1 Max Kills in Single Turn 4 | . 2 4 1 Gunslinging . | . . . . Exploded 3 | . 2 3 . Melee . | . . . . Uniques/NPCs Destroyed . | . . . . Combat | -11 -10 -9 -9 -------- Run | Yrd Mat Mat Min Hostile Shots Fired 155 | . 24 99 32 Missed 42 | . 9 20 13 Damage Taken 1446 | . 205 1001 240 Core 430 | . 24 344 62 Absorbed by Shields . | . . . . Core Remaining (%) 95 | 100 90 . . Volleys Fired 39 | . 8 25 6 Largest 2 | . 2 2 2 Hottest 100 | . 100 100 66 Shots Fired 66 | . 16 43 7 Gun 27 | . 10 12 5 Cannon 19 | . . 19 . Launcher 20 | . 6 12 2 Special . | . . . . Kinetic 10 | . . 5 5 Thermal 36 | . 10 26 . Explosive 20 | . 6 12 2 Electromagnetic . | . . . . Robot Hit Streak 8 | . 6 8 5 Robot Miss Streak 5 | . 3 5 4 Penetration Max . | . . . . Secondary Targets . | . . . . Shots Hit Robots 39 | . 7 26 6 Core Hits 44 | . 15 25 4 Critical Kills . | . . . . Critical Parts Destroyed . | . . . . Critical Strikes 2 | . 1 1 . Burn 2 | . 1 1 . Melee Attacks . | . . . . Impact . | . . . . Slashing . | . . . . Piercing . | . . . . Sneak Attacks . | . . . . Combat Hostiles . | . . . . Follow-up Attacks . | . . . . Damage Inflicted 2099 | . 750 1208 141 Guns 204 | . 50 85 69 Cannons 245 | . . 245 . Explosions 1650 | . 700 878 72 Melee . | . . . . Ramming . | . . . . Kinetic 92 | . . 23 69 Thermal 755 | . 448 307 . Explosive 1252 | . 302 878 72 Electromagnetic . | . . . . Impact . | . . . . Slashing . | . . . . Piercing . | . . . . Highest Corruption . | . . . . Average Corruption . | . . . . Corruption Purged . | . . . . Corruption Blocked . | . . . . Overload Shots . | . . . . Overflow Damage 84 | . 70 14 . Projectiles . | . . . . Explosions 84 | . 70 14 . Melee . | . . . . Knockbacks . | . . . . Impact . | . . . . Kinetic . | . . . . Secondary . | . . . . Self-Inflicted Damage 196 | . 54 108 34 Shots 10 | . 3 5 2 Rammed . | . . . . Targets Rammed 1 | . . 1 . Kicked 1 | . . 1 . Crushed . | . . . . Highest Temperature 143 | . 89 143 . Average Temperature 37 | . 48 32 . Received Heat Transfer 447 | . 48 363 36 Siege Activations . | . . . . Robots Corrupted . | . . . . Combat Hostiles . | . . . . Parts Fried . | . . . . Impact Corruptions . | . . . . Robots Melted . | . . . . Combat Hostiles . | . . . . Parts Melted 4 | . 1 3 . Heat Transferred 1225 | . 522 703 . Parts Sabotaged . | . . . . Parts Stolen . | . . . . Parts Stripped . | . . . . Power Chain Reactions . | . . . . Alert | -11 -10 -9 -9 ------- Run | Yrd Mat Mat Min Peak Influence 282 | . 260 282 116 Initial 49 | . . 49 37 Average 111 | . 135 168 46 Maximum Alert Level 1 | . 1 1 . Low Security (%) 73 | 100 52 55 100 Level 1 26 | . 47 44 . Level 2 . | . . . . Level 3 . | . . . . Level 4 . | . . . . Level 5 . | . . . . High Security . | . . . . Max Security . | . . . . Squads Dispatched . | . . . . Investigation . | . . . . Extermination . | . . . . Reinforcement . | . . . . Assault . | . . . . Garrison . | . . . . Intercept . | . . . . Searches Triggered . | . . . . Construction Impeded . | . . . . Haulers Reinforced . | . . . . Active Scanning Responses . | . . . . Cargo Convoy Interrupts . | . . . . Stealth | -11 -10 -9 -9 --------- Run | Yrd Mat Mat Min Distress Signals 2 | . 1 1 . Communications Jammed . | . . . . Distress Signals . | . . . . Times Spotted 33 | . 7 18 8 Peak Tracking Total 8 | . 8 4 4 Tactical Retreats . | . . . . Traps | -11 -10 -9 -9 ------- Run | Yrd Mat Mat Min Traps Triggered . | . . . . Indirectly . | . . . . Trap Hack Attempts . | . . . . Triggered . | . . . . Disarmed . | . . . . Reprogrammed . | . . . . Reused . | . . . . Traps Extracted . | . . . . Installed . | . . . . Triggered . | . . . . Machines | -11 -10 -9 -9 ---------- Run | Yrd Mat Mat Min Machines Disabled 6 | . 3 1 2 Max in Single Turn 2 | . 2 1 2 Machines Repaired . | . . . . Machines Dismantled . | . . . . Machines Sabotaged . | . . . . Overloaded Fab Kills . | . . . . Hacking | -11 -10 -9 -9 --------- Run | Yrd Mat Mat Min Machines Accessed 4 | . 2 2 . Terminals 3 | . 2 1 . Fabricators . | . . . . Repair Stations . | . . . . Recycling Units 1 | . . 1 . Scanalyzers . | . . . . Garrison Access . | . . . . Total Hacks 14 | . 10 4 . Successful 7 | . 5 2 . Failed 7 | . 5 2 . Catastrophic 1 | . 1 . . Database Lockouts . | . . . . Manual . | . . . . Terminals 12 | . 10 2 . Fabricators . | . . . . Repair Stations . | . . . . Recycling Units 2 | . . 2 . Scanalyzers . | . . . . Garrison Access . | . . . . Terminal Hacks 6 | . 5 1 . Alert Level 2 | . 2 . . Unreport Threat 1 | . 1 . . Locate Traps 1 | . 1 . . Security Status 1 | . 1 . . Hauler Manifests 1 | . . 1 . Fabricator Hacks . | . . . . Repair Station Hacks . | . . . . Recycling Unit Hacks 1 | . . 1 . Retrieve Components 1 | . . 1 . Scanalyzer . | . . . . Garrison Access Hacks . | . . . . Unauthorized Hacks . | . . . . Terminals . | . . . . Fabricators . | . . . . Repair Stations . | . . . . Recycling Units . | . . . . Scanalyzers . | . . . . Garrison Access . | . . . . Data Cores Recovered . | . . . . Used . | . . . . Hacking Detections 4 | . 2 2 . Full Trace Events . | . . . . Feedback Events . | . . . . Feedback Blocked . | . . . . Robot Schematics Acquired . | . . . . Robots Built . | . . . . Authchips . | . . . . Time . | . . . . Total Robot Build Rating . | . . . . Part Schematics Acquired . | . . . . Parts Built . | . . . . Authchips . | . . . . Time . | . . . . Total Part Build Rating . | . . . . Parts Repaired . | . . . . Time . | . . . . Parts Recycled . | . . . . Recycled Matter . | . . . . Retrieved Matter . | . . . . Retrieved Components 9 | . . 9 . Parts Scanalyzed . | . . . . Part Schematics Acquired . | . . . . Parts Damaged . | . . . . Bothacking | -11 -10 -9 -9 ------------ Run | Yrd Mat Mat Min Used RIF Installer . | . . . . Robots Hacked . | . . . . Non-combat . | . . . . Combat . | . . . . Robot Hacks Applied . | . . . . Relay Couplers Released . | . . . . Fabnet Peak Effective % . | . . . . Robots Rewired . | . . . . Allies Hacked . | . . . . Hacks Repelled . | . . . . Allies | -11 -10 -9 -9 -------- Run | Yrd Mat Mat Min Total Allies 2 | . . . 2 Largest Group 2 | . . . 2 Highest-Rated Group 38 | . . . 38 Highest-Rated Ally 31 | . . . 31 Total Orders . | . . . . Ally Attacks 4 | . . . 4 Total Damage 84 | . . . 84 Kills 3 | . . . 3 Allies Corrupted . | . . . . Allies Melted . | . . . . Intel | -11 -10 -9 -9 ------- Run | Yrd Mat Mat Min Robot Analysis Total . | . . . . Derelict Logs Recovered 1 | . . . 1 Drone Launches . | . . . . Drone Recoveries . | . . . . Exploration | -11 -10 -9 -9 ------------- Run | Yrd Mat Mat Min Turns Passed 2107 | 43 290 928 846 Spaces Moved 704 | 44 208 153 299 Core 57 | 44 . 13 . Treads . | . . . . Legs 647 | . 208 140 299 Wheels . | . . . . Hover . | . . . . Flight . | . . . . Fastest Speed 50 | 50 120 120 260 Average Speed 274 | 79 120 546 272 Slowest Speed 1550 | 100 120 1550 400 Overloaded Moves . | . . . . Propulsion Burnouts . | . . . . Robots Hopped . | . . . . Cave-ins Triggered . | . . . . Exploration Rate (%) 32 | 3 47 19 60 Regions Visited 3 Branch Regions 1 Pre-discovered Areas 1 | . . . 1 Known Exits Taken . | . . . . Unknown Exits Taken 3 | 1 1 1 . Scrap Searched 2 | . . . 2 Spaces Dug . | . . . . Terrain Destroyed 143 | . 26 100 17 Melee . | . . . . Projectile 3 | . . 3 . AOE 140 | . 26 97 17 Terrain Rammed . | . . . . Walls Destroyed . | . . . . Machines Disabled . | . . . . Actions | -11 -10 -9 -9 --------- Run | Yrd Mat Mat Min Total 808 | 51 230 199 328 Wait . | . . . . Move 701 | 43 207 152 299 Hop . | . . . . Pick Up 30 | 7 6 9 8 Fast Attach 2 | 1 1 . . Attach 15 | . 5 7 3 Detach 3 | . . 1 2 Swap 10 | . 3 3 4 Drop 7 | . . 1 6 Fire 39 | . 8 25 6 Melee . | . . . . Ram . | . . . . Kick 1 | . . 1 . Crush . | . . . . Escape Stasis . | . . . . Rewire . | . . . . Trap . | . . . . Miscellaneous . | . . . . Route ------- -11/Scrapyard -10/Materials -9/Materials (discovered 2 exits: [*Min x2]) -9/Mines History --------- Turn | Location | Event 7 | -11/Scrapyard | Discovered new exit (range 14) 44 | -11/Scrapyard | Entered Materials 311 | -10/Materials | Build established: Mutant 330 | -10/Materials | Discovered new exit (range 4) 334 | -10/Materials | Entered another Materials area 334 | -9/Materials | Evolved 2 slots: Propulsion x2 449 | -9/Materials | Lost 4 parts (1p2n1w) 862 | -9/Materials | Discovered new exit (range 6) 879 | -9/Materials | Core integrity fell below 50% 910 | -9/Materials | Discovered new exit (range 16) 1066 | -9/Materials | Core integrity fell below 20% 1262 | -9/Materials | Entered Mines 1747 | -9/Mines | Received a Rocket Launcher from a helpful Derelict 2108 | -9/Mines | Destroyed by Y-45 Defender with Beam Rifle Last Messages --------------- U-05 Engineer builds a Wall. Acquired Mni. Grenade Launcher. U-05 Engineer lays Concrete. Acquired Mni. Grenade Launcher. U-05 Engineer lays Concrete. U-05 Engineer builds a Wall. U-05 Engineer lays Concrete. U-05 Engineer builds a Wall. U-05 Engineer lays Concrete. U-05 Engineer builds a Wall. Acquired derelict log, extracted data. World map updated: -8/Materials. Searching scrap... Found Visual Processing Unit. Found Rocket Launcher. Found ECM Suite. Found 32 Matter. Acquired Rocket Launcher. RW-58K(z) destroyed. Machine disabled. Map ----- +----------------------------------------------------+ | #????????????????????????????????? | | ##????????????????????????????????? | | ####?????????????????????????????????? | | ##????????????????????????????????????? | | # ### ###?????????????????????????????????????? | | # #?# ##???????????????????????????????????????? | | # #?#####????????????????????????????????????????? | | # #??????????????????????????????????????????????? | | # #??????????????????????????????????????????????? | | # #??????????????????????????????????????????????? | | # #######????????????????????????????????????????? | | # #????????????????????????????????????????? | | ###### #????????????????????????????????????????? | | ?????# #????????????????????????????????????????? | | ?????# #????????????????????????????????????????? | | ????## ##???????????????????????##??????????????? | | ????# #?????????????????????? ##?????????????? | | ##### #?????????????????##?? #?????????????? | | ##??????????????### ### ??????????????? | | #???????????????# ! ???????????????? | | ##### ##???????????????" ![ #????????????????? | | ????####???????????????? #????????????????? | | ???????????????????????? Y #????????????????? | | #??????????????????????## Y ##???????????????? | | ##?????###?????????????# #???????????????? | | ##???## ############### @ #????????????????? | | ##?## ## #????????????????? | | ### ##### ## #### ####????????????????? | | #???# ## #??# ##???????????????????? | | ##???# ## ##? #????????????????????? | | # ####????# ## *% #???????????????????? | | ## ##???????# ## = #??????????????????? | | ?#####????????##### ## ss#??????????????????? | | ??????????????????# ## ?????????????????? | | ??????????????????# t ????????????????? | | ??????????????????# ### #######???????????????? | | ??????????????????# #?## #?????????????????????? | | ??????????????????# #??? ?????????????????????? | | ??????????????????? #??? ?????????????????????? | | ??????????????????? #??? ?????????????????????? | | ??????????????????? ???# ?????????????????????? | | ??????????????????? ????#??????????????????????? | | ??????????????????? ???????????????????????????? | | ??????????????????? ???????????????????????????? | | ???????????????????####??????????????????????????? | | ?????????????????????????????????????????????????? | | | | | | | | | +----------------------------------------------------+ Best States ------------- Heat Dissipation 28 Coolant Potential 50 Energy Generation 10 Energy Capacity 250 Matter Stores 300 Matter Capacity 300 Sight Range 16 Terrain Scan Density 10 Evasion (%) 55 Item Schematics ----------------- None Robot Schematics ------------------ None Fabricated ------------ Nothing Alien Tech Used ----------------- None Achievements -------------- None Challenges ------------ None Game ------ Seed RestorationCentriumSheargun Manual? 0 Play Time 00:14:41 Cumulative 5.4 hours Start 2024.04.21 @ 14:36:28 End 2024.04.21 @ 21:00:34 Sessions 3 Manual Loads 0 Difficulty Rogue Special Mode None Game No. 16 Rogue 16 Adventurer 0 Explorer 0 Win Type - Total 0 Types 0/0/0/0/0/0/0/0/0 Lore% 12 Gallery% 12 Achievement% 11 Wizard Run 0 Options --------- Layout 1 ASCII 0 Keyboard 0 Movement Mouse Keybinds 0 Fullscreen 1 Font 24/Smallcaps Map View 50x35 Zoom Use 0% Tactical HUD 0 Map Filters NONE Filters NONE Steam 1 RUN: 081d52f2-907b-4d21-856c-6e734a5f8795